[Event "*** Titled Tuesday Blitz"]
[Site "Chess.com"]
[Date "2020.04.14"]
[Round "1"]
[White "TregubovP"]
[Black "Fandorine"]
[Result "0-1"]
[WhiteElo "2486"]
[BlackElo "2916"]
[TimeControl "180+1"]
[EndTime "10:07:27 PDT"]
[Termination "Fandorine won on time"]

1. e4 {[%clk 0:02:59.8]} 1... c5 {[%clk 0:02:58.2]} 2. Nf3 {[%clk 0:02:58.9]}
2... d6 {[%clk 0:02:54.1]} 3. c3 {[%clk 0:02:58.5]} 3... Nf6 {[%clk 0:02:53.6]}
4. Be2 {[%clk 0:02:59]} 4... Nbd7 {[%clk 0:02:50.5]} 5. d3 {[%clk 0:02:53.8]}
5... b6 {[%clk 0:02:49.5]} 6. O-O {[%clk 0:02:52.1]} 6... Bb7 {[%clk 0:02:49.6]}
7. Nbd2 {[%clk 0:02:52.5]} 7... g6 {[%clk 0:02:49.8]} 8. d4 {[%clk 0:02:52.6]}
8... Bg7 {[%clk 0:02:38.5]} 9. Re1 {[%clk 0:02:42]} 9... O-O {[%clk 0:02:31.1]}
10. Bf1 {[%clk 0:02:42]} 10... Qc7 {[%clk 0:02:24.7]} 11. h3 {[%clk 0:02:27.5]}
11... e6 {[%clk 0:02:23.4]} 12. e5 {[%clk 0:02:19.4]} 12... dxe5 {[%clk
0:02:00.9]} 13. dxe5 {[%clk 0:02:18.9]} 13... Nd5 {[%clk 0:02:01.4]} 14. Nc4
{[%clk 0:02:10]} 14... b5 {[%clk 0:02:01.2]} 15. Nd6 {[%clk 0:02:01.3]} 15...
Nxe5 {[%clk 0:02:01.3]} 16. Nxb5 {[%clk 0:01:41.1]} 16... Nxf3+ {[%clk
0:01:58.6]} 17. Qxf3 {[%clk 0:01:41.6]} 17... Qb6 {[%clk 0:01:33.6]} 18. Qg3
{[%clk 0:01:41.6]} 18... Rad8 {[%clk 0:01:27.6]} 19. Na3 {[%clk 0:01:20.1]}
19... Ba6 {[%clk 0:01:16.6]} 20. Nc4 {[%clk 0:01:15.9]} 20... Qb7 {[%clk
0:01:00.5]} 21. Bg5 {[%clk 0:01:06.6]} 21... Rd7 {[%clk 0:00:51]} 22. Rab1
{[%clk 0:00:51.2]} 22... h6 {[%clk 0:00:46.9]} 23. Bd2 {[%clk 0:00:50.3]} 23...
Nb6 {[%clk 0:00:38.3]} 24. Na5 {[%clk 0:00:43.9]} 24... Qc8 {[%clk 0:00:37.8]}
25. Bf4 {[%clk 0:00:41.4]} 25... Bxf1 {[%clk 0:00:36.2]} 26. Rxf1 {[%clk
0:00:40.8]} 26... Qa6 {[%clk 0:00:36.4]} 27. Nb3 {[%clk 0:00:40]} 27... Rc8
{[%clk 0:00:34.9]} 28. Be3 {[%clk 0:00:26.1]} 28... Na4 {[%clk 0:00:21.8]} 29.
Qh4 {[%clk 0:00:20.8]} 29... Kh7 {[%clk 0:00:13.8]} 30. Rfc1 {[%clk 0:00:14.2]}
30... Rb7 {[%clk 0:00:13.4]} 31. Qe4 {[%clk 0:00:08.1]} 31... c4 {[%clk
0:00:11.4]} 32. Nd4 {[%clk 0:00:07]} 32... Nc5 {[%clk 0:00:08.4]} 33. Qf3 {[%clk
0:00:05.5]} 33... Nd3 {[%clk 0:00:08.8]} 34. Rc2 {[%clk 0:00:05.7]} 34... e5
{[%clk 0:00:08.2]} 35. Ne2 {[%clk 0:00:03.7]} 35... f5 {[%clk 0:00:08.7]} 0-1

[Event "*** Titled Tuesday Blitz"]
[Site "Chess.com"]
[Date "2020.04.14"]
[Round "1"]
[White "RD4ever"]
[Black "mbachez"]
[Result "1/2-1/2"]
[WhiteElo "2859"]
[BlackElo "2474"]
[TimeControl "180+1"]
[EndTime "10:07:27 PDT"]
[Termination "Game drawn - insufficient material"]

1. e4 {[%clk 0:03:00.4]} 1... e6 {[%clk 0:02:59.3]} 2. d4 {[%clk 0:02:59.4]}
2... d5 {[%clk 0:02:59.4]} 3. Bd3 {[%clk 0:02:59.9]} 3... c5 {[%clk 0:02:58.3]}
4. exd5 {[%clk 0:02:59.7]} 4... exd5 {[%clk 0:02:58.5]} 5. Nf3 {[%clk
0:03:00.2]} 5... c4 {[%clk 0:02:58.8]} 6. Be2 {[%clk 0:02:59.8]} 6... Nc6 {[%clk
0:02:59]} 7. O-O {[%clk 0:02:59.8]} 7... Nf6 {[%clk 0:02:57.8]} 8. b3 {[%clk
0:02:58.8]} 8... cxb3 {[%clk 0:02:57.9]} 9. axb3 {[%clk 0:02:59.7]} 9... Be7
{[%clk 0:02:58.2]} 10. Ba3 {[%clk 0:02:57.1]} 10... O-O {[%clk 0:02:55.1]} 11.
h3 {[%clk 0:02:49.2]} 11... Ne4 {[%clk 0:02:53.4]} 12. Bd3 {[%clk 0:02:45.2]}
12... Bf5 {[%clk 0:02:44.2]} 13. Re1 {[%clk 0:02:31.4]} 13... Re8 {[%clk
0:02:38.8]} 14. c3 {[%clk 0:02:20]} 14... Bxa3 {[%clk 0:02:37]} 15. Rxa3 {[%clk
0:02:20.9]} 15... Qd6 {[%clk 0:02:12.3]} 16. Ra2 {[%clk 0:02:18.6]} 16... h6
{[%clk 0:01:53.9]} 17. Rae2 {[%clk 0:02:16.7]} 17... Re6 {[%clk 0:01:53.7]} 18.
Bxe4 {[%clk 0:02:07.8]} 18... Bxe4 {[%clk 0:01:30.5]} 19. Nbd2 {[%clk
0:02:07.6]} 19... Rae8 {[%clk 0:01:28.5]} 20. Nxe4 {[%clk 0:02:05.7]} 20... dxe4
{[%clk 0:01:21.8]} 21. Nd2 {[%clk 0:02:04.9]} 21... Qd5 {[%clk 0:01:12]} 22. Nc4
{[%clk 0:02:01.5]} 22... R6e7 {[%clk 0:01:04.7]} 23. f3 {[%clk 0:01:16.8]} 23...
exf3 {[%clk 0:00:55.9]} 24. Rxe7 {[%clk 0:01:17.7]} 24... Rxe7 {[%clk
0:00:52.8]} 25. Rxe7 {[%clk 0:01:17.4]} 25... Nxe7 {[%clk 0:00:52.6]} 26. Qxf3
{[%clk 0:01:13.1]} 26... Qxf3 {[%clk 0:00:52.4]} 27. gxf3 {[%clk 0:01:14]} 27...
Nd5 {[%clk 0:00:52.6]} 28. Nd6 {[%clk 0:01:14.7]} 28... Nxc3 {[%clk 0:00:52.2]}
29. Kf2 {[%clk 0:01:11.8]} 29... b5 {[%clk 0:00:48.4]} 30. Ke3 {[%clk
0:01:11.8]} 30... a6 {[%clk 0:00:42.8]} 31. Kd3 {[%clk 0:00:58.3]} 31... Nd5
{[%clk 0:00:42.7]} 32. Ke4 {[%clk 0:00:58.7]} 32... Nc7 {[%clk 0:00:40.9]} 33.
d5 {[%clk 0:00:54.5]} 33... Kf8 {[%clk 0:00:40.5]} 34. Nf5 {[%clk 0:00:54.8]}
34... g6 {[%clk 0:00:39.6]} 35. Nxh6 {[%clk 0:00:35.9]} 35... Kg7 {[%clk
0:00:39.5]} 36. d6 {[%clk 0:00:36.8]} 36... Ne8 {[%clk 0:00:39.1]} 37. Ke5
{[%clk 0:00:32]} 37... Nxd6 {[%clk 0:00:29.5]} 38. Kxd6 {[%clk 0:00:32.9]} 38...
Kxh6 {[%clk 0:00:29.3]} 39. Kc5 {[%clk 0:00:33.6]} 39... Kg5 {[%clk 0:00:28.2]}
40. Kb6 {[%clk 0:00:33.4]} 40... Kf4 {[%clk 0:00:28]} 41. Kxa6 {[%clk
0:00:34.1]} 41... Kxf3 {[%clk 0:00:27.8]} 42. Kxb5 {[%clk 0:00:35]} 42... f5
{[%clk 0:00:28.2]} 43. Kc5 {[%clk 0:00:35.9]} 43... Kg3 {[%clk 0:00:25.7]} 44.
b4 {[%clk 0:00:36.8]} 44... f4 {[%clk 0:00:25.7]} 45. b5 {[%clk 0:00:37.7]}
45... f3 {[%clk 0:00:26.1]} 46. b6 {[%clk 0:00:38.6]} 46... f2 {[%clk
0:00:26.5]} 47. b7 {[%clk 0:00:39.5]} 47... f1=Q {[%clk 0:00:26.5]} 48. b8=Q+
{[%clk 0:00:40.4]} 48... Qf4 {[%clk 0:00:24.2]} 49. Qxf4+ {[%clk 0:00:34.2]}
49... Kxf4 {[%clk 0:00:24]} 50. Kd5 {[%clk 0:00:35.1]} 50... g5 {[%clk
0:00:23.7]} 51. Ke6 {[%clk 0:00:35.3]} 51... Kg3 {[%clk 0:00:23.6]} 52. Kf5
{[%clk 0:00:35.6]} 52... Kh4 {[%clk 0:00:22.7]} 53. Kg6 {[%clk 0:00:35.8]} 53...
Kxh3 {[%clk 0:00:22.8]} 54. Kxg5 {[%clk 0:00:35.9]} 1/2-1/2

[Event "*** Titled Tuesday Blitz"]
[Site "Chess.com"]
[Date "2020.04.14"]
[Round "1"]
[White "bangchess21"]
[Black "MokshAD1603"]
[Result "1-0"]
[WhiteElo "2692"]
[BlackElo "2342"]
[TimeControl "180+1"]
[EndTime "10:07:27 PDT"]
[Termination "bangchess21 won by resignation"]

1. e4 {[%clk 0:03:00.9]} 1... e5 {[%clk 0:02:59.2]} 2. Nf3 {[%clk 0:03:00.8]}
2... Nc6 {[%clk 0:02:58.8]} 3. d4 {[%clk 0:03:00.8]} 3... exd4 {[%clk
0:02:58.5]} 4. Nxd4 {[%clk 0:03:01.1]} 4... Nf6 {[%clk 0:02:55.6]} 5. Nxc6
{[%clk 0:03:00.9]} 5... bxc6 {[%clk 0:02:56.5]} 6. e5 {[%clk 0:03:01.3]} 6...
Qe7 {[%clk 0:02:56.3]} 7. Qe2 {[%clk 0:03:01.7]} 7... Nd5 {[%clk 0:02:56.6]} 8.
h4 {[%clk 0:03:02]} 8... Qe6 {[%clk 0:02:56]} 9. Nd2 {[%clk 0:03:01]} 9... a5
{[%clk 0:02:53.3]} 10. a3 {[%clk 0:02:59.7]} 10... Ba6 {[%clk 0:02:50.3]} 11.
Qe4 {[%clk 0:02:59.9]} 11... Bxf1 {[%clk 0:02:47.2]} 12. Kxf1 {[%clk 0:03:00.8]}
12... Be7 {[%clk 0:02:41.3]} 13. Nf3 {[%clk 0:03:00.5]} 13... f6 {[%clk
0:02:38.7]} 14. Bd2 {[%clk 0:02:50.7]} 14... fxe5 {[%clk 0:02:23.7]} 15. Qxe5
{[%clk 0:02:47.4]} 15... Qxe5 {[%clk 0:02:19.4]} 16. Nxe5 {[%clk 0:02:47.6]}
16... Bf6 {[%clk 0:02:19.5]} 17. Nc4 {[%clk 0:02:48.1]} 17... O-O {[%clk
0:02:16.2]} 18. Re1 {[%clk 0:02:32.4]} 18... Bd4 {[%clk 0:02:14.6]} 19. Re2
{[%clk 0:02:23.1]} 19... a4 {[%clk 0:02:13.8]} 20. h5 {[%clk 0:02:18.9]} 20...
Rab8 {[%clk 0:02:12.5]} 21. Rh4 {[%clk 0:02:18.3]} 21... Bxb2 {[%clk 0:02:10.5]}
22. Nxb2 {[%clk 0:02:10.2]} 22... Rxb2 {[%clk 0:02:11.4]} 23. Rxa4 {[%clk
0:02:10.8]} 23... Rxc2 {[%clk 0:02:11.2]} 24. h6 {[%clk 0:01:57.2]} 24... g6
{[%clk 0:01:59.1]} 25. g3 {[%clk 0:01:46]} 25... Rb8 {[%clk 0:01:58.1]} 26. Be1
{[%clk 0:01:25.5]} 26... Rc1 {[%clk 0:01:50.5]} 27. Kg2 {[%clk 0:01:21]} 27...
Ra1 {[%clk 0:01:35.3]} 28. f3 {[%clk 0:00:52.6]} 28... Kf7 {[%clk 0:01:27.1]}
29. g4 {[%clk 0:00:41.1]} 29... Rb3 {[%clk 0:01:26.3]} 30. Rae4 {[%clk
0:00:23.2]} 30... Raxa3 {[%clk 0:01:23.6]} 31. Rf2 {[%clk 0:00:21.2]} 31... Re3
{[%clk 0:01:21.8]} 32. Bd2 {[%clk 0:00:19.3]} 32... Red3 {[%clk 0:01:15.4]} 33.
Bg5 {[%clk 0:00:19.5]} 33... c5 {[%clk 0:01:09.9]} 34. Rc4 {[%clk 0:00:16.3]}
34... d6 {[%clk 0:01:08.1]} 35. Re4 {[%clk 0:00:16.2]} 35... Rab3 {[%clk
0:01:05.4]} 36. Ra4 {[%clk 0:00:14.5]} 36... Rb4 {[%clk 0:01:03.3]} 37. Ra8
{[%clk 0:00:14.6]} 37... Rdb3 {[%clk 0:01:03.3]} 38. Rh8 {[%clk 0:00:14.4]}
38... Nf6 {[%clk 0:01:01.8]} 39. Bxf6 {[%clk 0:00:14.1]} 39... Kxf6 {[%clk
0:01:02.7]} 40. Rxh7 {[%clk 0:00:15]} 40... Rb7 {[%clk 0:00:57.7]} 41. f4 {[%clk
0:00:14.7]} 41... Ra3 {[%clk 0:00:54.5]} 42. g5+ {[%clk 0:00:14.4]} 42... Kf5
{[%clk 0:00:54.5]} 43. Rf7+ {[%clk 0:00:14.5]} 43... Kg4 {[%clk 0:00:54.6]} 44.
h7 {[%clk 0:00:14]} 44... Rg3+ {[%clk 0:00:53.5]} 45. Kf1 {[%clk 0:00:12.3]}
45... Rb1+ {[%clk 0:00:50.5]} 46. Ke2 {[%clk 0:00:12.9]} 46... Rh3 {[%clk
0:00:47.7]} 47. Rg2+ {[%clk 0:00:09.3]} 1-0

[Event "*** Titled Tuesday Blitz"]
[Site "Chess.com"]
[Date "2020.04.14"]
[Round "1"]
[White "Filip_Covic"]
[Black "TomsKantans"]
[Result "0-1"]
[WhiteElo "2306"]
[BlackElo "2656"]
[TimeControl "180+1"]
[EndTime "10:07:27 PDT"]
[Termination "TomsKantans won by resignation"]

1. d4 {[%clk 0:03:00.9]} 1... Nf6 {[%clk 0:02:59.5]} 2. c4 {[%clk 0:03:00.6]}
2... g6 {[%clk 0:02:58.6]} 3. Nc3 {[%clk 0:02:59.1]} 3... d5 {[%clk 0:02:58.4]}
4. cxd5 {[%clk 0:03:00]} 4... Nxd5 {[%clk 0:02:59.2]} 5. e4 {[%clk 0:03:00]}
5... Nxc3 {[%clk 0:02:59.7]} 6. bxc3 {[%clk 0:03:00.9]} 6... Bg7 {[%clk
0:03:00.4]} 7. Nf3 {[%clk 0:03:01.2]} 7... c5 {[%clk 0:02:57]} 8. Be3 {[%clk
0:03:01.1]} 8... O-O {[%clk 0:02:50.7]} 9. Qd2 {[%clk 0:02:58.9]} 9... Bg4
{[%clk 0:02:47.4]} 10. d5 {[%clk 0:02:49]} 10... Bxf3 {[%clk 0:02:47.2]} 11.
gxf3 {[%clk 0:02:48.8]} 11... Nd7 {[%clk 0:02:48.1]} 12. Be2 {[%clk 0:02:43]}
12... Qa5 {[%clk 0:02:40.9]} 13. Rc1 {[%clk 0:02:38.9]} 13... c4 {[%clk
0:02:41]} 14. h4 {[%clk 0:02:37.4]} 14... h5 {[%clk 0:02:40.2]} 15. Rg1 {[%clk
0:02:31.2]} 15... Rac8 {[%clk 0:02:35.8]} 16. Bh6 {[%clk 0:02:30.6]} 16... Ne5
{[%clk 0:02:24.6]} 17. Bxg7 {[%clk 0:02:03]} 17... Kxg7 {[%clk 0:02:25.5]} 18.
Qd4 {[%clk 0:01:59.9]} 18... f6 {[%clk 0:02:25.5]} 19. f4 {[%clk 0:01:58.5]}
19... Nd3+ {[%clk 0:02:25.8]} 20. Bxd3 {[%clk 0:01:58.9]} 20... cxd3 {[%clk
0:02:26.7]} 21. Qxd3 {[%clk 0:01:59.4]} 21... Qxa2 {[%clk 0:02:04.1]} 22. Qg3
{[%clk 0:01:39.9]} 22... g5 {[%clk 0:02:03.2]} 23. fxg5 {[%clk 0:01:25.9]} 23...
Kf7 {[%clk 0:01:41.2]} 24. g6+ {[%clk 0:00:33]} 24... Kg7 {[%clk 0:01:39.3]} 25.
Qf3 {[%clk 0:00:17.8]} 25... Qb2 {[%clk 0:01:26.2]} 26. Qe3 {[%clk 0:00:08.7]}
26... Rc4 {[%clk 0:01:24.6]} 27. e5 {[%clk 0:00:07.4]} 27... Re4 {[%clk
0:01:10.6]} 28. exf6+ {[%clk 0:00:03.4]} 28... Rxf6 {[%clk 0:00:57.2]} 29. Qxe4
{[%clk 0:00:03]} 29... Qxc1+ {[%clk 0:00:55.7]} 30. Ke2 {[%clk 0:00:03.6]} 30...
Qxg1 {[%clk 0:00:39]} 31. Qxe7+ {[%clk 0:00:03.3]} 31... Kxg6 {[%clk 0:00:39.6]}
32. Qe8+ {[%clk 0:00:03.4]} 32... Kg7 {[%clk 0:00:26.7]} 33. Qe7+ {[%clk
0:00:02.9]} 33... Rf7 {[%clk 0:00:26.7]} 34. Qe5+ {[%clk 0:00:03.4]} 34... Kh7
{[%clk 0:00:25.3]} 35. Qxh5+ {[%clk 0:00:03.5]} 35... Kg8 {[%clk 0:00:25.2]} 36.
Qe5 {[%clk 0:00:01.4]} 36... Qxf2+ {[%clk 0:00:22.7]} 37. Kd3 {[%clk 0:00:01.9]}
37... Qf3+ {[%clk 0:00:18.2]} 38. Kc4 {[%clk 0:00:02.4]} 38... Qf4+ {[%clk
0:00:18.5]} 39. Qxf4 {[%clk 0:00:02.7]} 39... Rxf4+ {[%clk 0:00:19.4]} 40. Kb5
{[%clk 0:00:03.3]} 40... Kf7 {[%clk 0:00:19.1]} 41. c4 {[%clk 0:00:03.2]} 41...
Ke7 {[%clk 0:00:19.4]} 42. c5 {[%clk 0:00:03.6]} 42... Kd7 {[%clk 0:00:19.9]}
43. h5 {[%clk 0:00:03.3]} 43... Rh4 {[%clk 0:00:19.8]} 0-1

[Event "*** Titled Tuesday Blitz"]
[Site "Chess.com"]
[Date "2020.04.14"]
[Round "1"]
[White "crazy_machine"]
[Black "willc-h99"]
[Result "0-1"]
[WhiteElo "2639"]
[BlackElo "2322"]
[TimeControl "180+1"]
[EndTime "10:07:27 PDT"]
[Termination "willc-h99 won on time"]

1. d4 {[%clk 0:03:00.9]} 1... Nf6 {[%clk 0:02:59.7]} 2. c4 {[%clk 0:03:01.2]}
2... e6 {[%clk 0:02:59.8]} 3. Nc3 {[%clk 0:03:01.7]} 3... Bb4 {[%clk 0:02:59.9]}
4. Qc2 {[%clk 0:03:02.1]} 4... c5 {[%clk 0:03:00.2]} 5. dxc5 {[%clk 0:02:58.1]}
5... Bxc5 {[%clk 0:03:00.9]} 6. Nf3 {[%clk 0:02:50.7]} 6... Qb6 {[%clk
0:03:00.8]} 7. e3 {[%clk 0:02:49.7]} 7... Qc7 {[%clk 0:03:00.9]} 8. Bd3 {[%clk
0:02:46.8]} 8... a6 {[%clk 0:02:59.8]} 9. O-O {[%clk 0:02:44.5]} 9... b6 {[%clk
0:02:59.6]} 10. a3 {[%clk 0:02:39.3]} 10... Bb7 {[%clk 0:02:59.7]} 11. e4 {[%clk
0:02:39.6]} 11... Nc6 {[%clk 0:02:56.3]} 12. h3 {[%clk 0:02:22.7]} 12... O-O
{[%clk 0:02:51.7]} 13. b4 {[%clk 0:02:19.2]} 13... Nd4 {[%clk 0:02:44.1]} 14.
Qd1 {[%clk 0:02:19]} 14... Nxf3+ {[%clk 0:02:42.7]} 15. Qxf3 {[%clk 0:02:19.9]}
15... Bd4 {[%clk 0:02:41.9]} 16. Bb2 {[%clk 0:02:20.4]} 16... d5 {[%clk
0:02:29.7]} 17. exd5 {[%clk 0:01:44.6]} 17... exd5 {[%clk 0:02:28.8]} 18. cxd5
{[%clk 0:01:44.9]} 18... Bxc3 {[%clk 0:02:11.8]} 19. Bxc3 {[%clk 0:01:44.2]}
19... Bxd5 {[%clk 0:02:09.8]} 20. Qe3 {[%clk 0:01:37.1]} 20... Rfe8 {[%clk
0:01:45.2]} 21. Qd4 {[%clk 0:01:36.6]} 21... Rad8 {[%clk 0:01:38.2]} 22. Rfc1
{[%clk 0:00:29.2]} 22... Bxg2 {[%clk 0:01:29.7]} 23. Bxh7+ {[%clk 0:00:25.5]}
23... Kxh7 {[%clk 0:00:55.8]} 24. Qh4+ {[%clk 0:00:25]} 24... Kg8 {[%clk
0:00:49.7]} 25. Bxf6 {[%clk 0:00:25.4]} 25... Qd6 {[%clk 0:00:38.2]} 26. Bxd8
{[%clk 0:00:23]} 26... Bb7 {[%clk 0:00:33.7]} 27. Rc7 {[%clk 0:00:07.2]} 27...
Ba8 {[%clk 0:00:06.4]} 28. Qh5 {[%clk 0:00:06.1]} 28... g6 {[%clk 0:00:02.9]}
29. Qg5 {[%clk 0:00:04.1]} 29... Rxd8 {[%clk 0:00:02.8]} 30. Rac1 {[%clk
0:00:01.6]} 30... Re8 {[%clk 0:00:01.7]} 31. Rc8 {[%clk 0:00:01.8]} 31... Qe6
{[%clk 0:00:02.2]} 0-1

[Event "*** Titled Tuesday Blitz"]
[Site "Chess.com"]
[Date "2020.04.14"]
[Round "1"]
[White "GasconJR"]
[Black "Dr-Bassem"]
[Result "0-1"]
[WhiteElo "2442"]
[BlackElo "2837"]
[TimeControl "180+1"]
[EndTime "10:07:28 PDT"]
[Termination "Dr-Bassem won by checkmate"]

1. e4 {[%clk 0:02:59.9]} 1... e5 {[%clk 0:02:59.3]} 2. Nf3 {[%clk 0:03:00]} 2...
Nc6 {[%clk 0:02:59.9]} 3. Bc4 {[%clk 0:02:59.9]} 3... Nf6 {[%clk 0:02:59.5]} 4.
d3 {[%clk 0:03:00.2]} 4... h6 {[%clk 0:02:59.2]} 5. O-O {[%clk 0:02:56.6]} 5...
d6 {[%clk 0:02:59.8]} 6. c3 {[%clk 0:02:52.9]} 6... g6 {[%clk 0:02:59.3]} 7. d4
{[%clk 0:02:51.3]} 7... Qe7 {[%clk 0:02:58.2]} 8. Bb5 {[%clk 0:02:42.4]} 8...
Bd7 {[%clk 0:02:50.2]} 9. d5 {[%clk 0:02:42.5]} 9... Nd8 {[%clk 0:02:47.4]} 10.
Bxd7+ {[%clk 0:02:38.7]} 10... Nxd7 {[%clk 0:02:48.3]} 11. c4 {[%clk 0:02:38.4]}
11... Bg7 {[%clk 0:02:44.9]} 12. Nc3 {[%clk 0:02:38.5]} 12... O-O {[%clk
0:02:44.4]} 13. Re1 {[%clk 0:02:31.3]} 13... f5 {[%clk 0:02:41.4]} 14. Nd2
{[%clk 0:01:59.5]} 14... a5 {[%clk 0:02:32.5]} 15. b3 {[%clk 0:01:57.5]} 15...
Nc5 {[%clk 0:02:26.7]} 16. Qe2 {[%clk 0:01:52.6]} 16... Nf7 {[%clk 0:02:04.4]}
17. a3 {[%clk 0:01:47.2]} 17... h5 {[%clk 0:01:30.3]} 18. Rb1 {[%clk 0:01:37.2]}
18... f4 {[%clk 0:01:05.3]} 19. f3 {[%clk 0:01:33.3]} 19... Qh4 {[%clk
0:00:55.8]} 20. Nf1 {[%clk 0:01:24.6]} 20... a4 {[%clk 0:00:50.3]} 21. b4 {[%clk
0:00:56.4]} 21... Nb3 {[%clk 0:00:49.8]} 22. Qf2 {[%clk 0:00:54.7]} 22... Qe7
{[%clk 0:00:47.3]} 23. Bb2 {[%clk 0:00:53]} 23... Bf6 {[%clk 0:00:44]} 24. Red1
{[%clk 0:00:50]} 24... g5 {[%clk 0:00:39.1]} 25. Nd2 {[%clk 0:00:34.2]} 25...
Nd4 {[%clk 0:00:31.1]} 26. Ne2 {[%clk 0:00:34.3]} 26... Nxe2+ {[%clk 0:00:25.2]}
27. Qxe2 {[%clk 0:00:35.2]} 27... Kh7 {[%clk 0:00:20.4]} 28. Rbc1 {[%clk
0:00:35.4]} 28... b6 {[%clk 0:00:16]} 29. Ba1 {[%clk 0:00:17.4]} 29... Rg8
{[%clk 0:00:16.1]} 30. c5 {[%clk 0:00:17.4]} 30... bxc5 {[%clk 0:00:15]} 31.
bxc5 {[%clk 0:00:18.3]} 31... g4 {[%clk 0:00:15.4]} 32. Kh1 {[%clk 0:00:17.4]}
32... Bh4 {[%clk 0:00:09.6]} 33. Nf1 {[%clk 0:00:15.7]} 33... Ng5 {[%clk
0:00:08.7]} 34. cxd6 {[%clk 0:00:11.5]} 34... cxd6 {[%clk 0:00:08.3]} 35. Rc6
{[%clk 0:00:12.4]} 35... gxf3 {[%clk 0:00:08.5]} 36. gxf3 {[%clk 0:00:12.4]}
36... Nh3 {[%clk 0:00:09.1]} 37. Rdc1 {[%clk 0:00:03.9]} 37... Rg1# {[%clk
0:00:08.1]} 0-1

[Event "*** Titled Tuesday Blitz"]
[Site "Chess.com"]
[Date "2020.04.14"]
[Round "1"]
[White "Alopekos"]
[Black "LittlePeasant"]
[Result "0-1"]
[WhiteElo "2434"]
[BlackElo "2826"]
[TimeControl "180+1"]
[EndTime "10:07:28 PDT"]
[Termination "LittlePeasant won on time"]

1. e4 {[%clk 0:03:00.9]} 1... c5 {[%clk 0:03:00.2]} 2. Nc3 {[%clk 0:02:59.5]}
2... a6 {[%clk 0:03:00.1]} 3. Nf3 {[%clk 0:02:58.3]} 3... b5 {[%clk 0:03:00]} 4.
d4 {[%clk 0:02:58.2]} 4... cxd4 {[%clk 0:03:00.6]} 5. Nxd4 {[%clk 0:02:58.7]}
5... Bb7 {[%clk 0:03:01.1]} 6. Bd3 {[%clk 0:02:58.9]} 6... e5 {[%clk 0:03:01]}
7. Nf5 {[%clk 0:02:48.6]} 7... g6 {[%clk 0:02:58.2]} 8. Ne3 {[%clk 0:02:34.9]}
8... Bc5 {[%clk 0:02:58.3]} 9. Ned5 {[%clk 0:02:28.7]} 9... d6 {[%clk
0:02:57.4]} 10. O-O {[%clk 0:02:16.9]} 10... Nd7 {[%clk 0:02:57.2]} 11. Qf3
{[%clk 0:02:14.8]} 11... b4 {[%clk 0:02:53.5]} 12. Na4 {[%clk 0:02:05.6]} 12...
h6 {[%clk 0:02:24.4]} 13. Nxc5 {[%clk 0:01:59.5]} 13... Nxc5 {[%clk 0:02:24.5]}
14. Bc4 {[%clk 0:01:20.5]} 14... Bxd5 {[%clk 0:01:45.1]} 15. Bxd5 {[%clk
0:01:21.4]} 15... Ra7 {[%clk 0:01:45.8]} 16. a3 {[%clk 0:01:18.1]} 16... bxa3
{[%clk 0:01:40.2]} 17. b4 {[%clk 0:01:17.7]} 17... Ne6 {[%clk 0:01:38]} 18. Bc6+
{[%clk 0:00:43]} 18... Kf8 {[%clk 0:01:34.4]} 19. c3 {[%clk 0:00:43.5]} 19...
Kg7 {[%clk 0:01:11.1]} 20. Be3 {[%clk 0:00:38.7]} 20... Re7 {[%clk 0:01:11.1]}
21. Rxa3 {[%clk 0:00:34]} 21... Qc8 {[%clk 0:01:11.4]} 22. Bd5 {[%clk
0:00:27.4]} 22... Nf6 {[%clk 0:01:11.9]} 23. Rfa1 {[%clk 0:00:26.5]} 23... Nc7
{[%clk 0:01:10.9]} 24. Bc4 {[%clk 0:00:10.8]} 24... Qb7 {[%clk 0:01:10.7]} 25.
Bd3 {[%clk 0:00:07.6]} 25... d5 {[%clk 0:01:06]} 26. Qe2 {[%clk 0:00:03.4]}
26... dxe4 {[%clk 0:00:58.6]} 27. Bxa6 {[%clk 0:00:03.5]} 27... Nxa6 {[%clk
0:00:59.5]} 28. Rxa6 {[%clk 0:00:03.8]} 28... Nd5 {[%clk 0:00:52.8]} 29. Ra7
{[%clk 0:00:03.5]} 29... Qc6 {[%clk 0:00:40.9]} 30. Rxe7 {[%clk 0:00:04.4]}
30... Nxe7 {[%clk 0:00:41.8]} 31. Bc5 {[%clk 0:00:05.3]} 31... Nf5 {[%clk
0:00:41.6]} 32. Re1 {[%clk 0:00:02.5]} 32... e3 {[%clk 0:00:41]} 33. fxe3 {[%clk
0:00:02.6]} 33... Qe4 {[%clk 0:00:41.6]} 34. Qf3 {[%clk 0:00:02.3]} 34... Qc4
{[%clk 0:00:41.6]} 35. Rf1 {[%clk 0:00:01.9]} 35... e4 {[%clk 0:00:40]} 36. Qf4
{[%clk 0:00:02.1]} 36... h5 {[%clk 0:00:38.9]} 37. Qe5+ {[%clk 0:00:01.7]} 37...
Kh7 {[%clk 0:00:39.4]} 38. Qf4 {[%clk 0:00:01.7]} 38... Rd8 {[%clk 0:00:38.5]}
39. Bd4 {[%clk 0:00:02]} 39... Re8 {[%clk 0:00:35.6]} 40. h3 {[%clk 0:00:02]}
40... Qe2 {[%clk 0:00:35.8]} 41. Kh2 {[%clk 0:00:02.3]} 41... h4 {[%clk
0:00:35.4]} 42. Rf2 {[%clk 0:00:02.4]} 42... Qh5 {[%clk 0:00:35]} 43. Qg4 {[%clk
0:00:02.6]} 43... Qxg4 {[%clk 0:00:27]} 44. hxg4 {[%clk 0:00:03.5]} 44... Nh6
{[%clk 0:00:27.9]} 45. Rf4 {[%clk 0:00:02.8]} 45... g5 {[%clk 0:00:27.3]} 0-1